bitfinex/quotes_BTCUSD_20250623
["timestamp","ask_amount","ask_price","bid_price","bid_amount"]
[1750706604975,0.90836117,103040.0,103030.0,0.002]
[1750706605196,2.468573,103040.0,103030.0,0.002]
[1750706605416,2.51548868,103040.0,103030.0,0.002]
[1750706605671,2.49742853,103040.0,103030.0,0.002]
[1750706607923,2.468573,103040.0,103030.0,0.002]
[1750706609520,3.03658265,103040.0,103030.0,0.002]
[1750706609738,3.26290326,103040.0,103030.0,0.002]
[1750706610192,3.22502335,103040.0,103030.0,0.002]
[1750706610431,3.23404948,103040.0,103030.0,0.002]
[1750706610657,2.67559795,103040.0,103030.0,0.002]
[1750706610918,2.8369908,103040.0,103030.0,0.002]
[1750706611169,2.87549508,103040.0,103030.0,0.002]
[1750706612676,2.8369908,103040.0,103030.0,0.002]
[1750706612898,3.26130468,103040.0,103030.0,0.002]
[1750706613121,2.87549508,103040.0,103030.0,0.002]
[1750706613384,2.87549508,103040.0,103010.0,0.0002]
[1750706613385,0.01454085,103020.0,103010.0,0.0002]
[1750706613610,3.142606,103020.0,103010.0,0.00033755]
[1750706613826,3.16572712,103020.0,103010.0,0.00033755]
[1750706614042,3.19492512,103020.0,103010.0,0.00033755]
[1750706614758,0.72949851,103020.0,103010.0,0.00033755]
[1750706614978,0.816633,103020.0,103010.0,0.00033755]
[1750706615201,0.82401188,103020.0,103010.0,0.00033755]
[1750706615427,0.98801188,103020.0,103010.0,0.00633755]
[1750706615642,0.98701188,103020.0,103010.0,0.00033755]
[1750706615857,0.95781388,103020.0,103010.0,0.00033755]
[1750706616092,0.95981388,103020.0,103010.0,0.00133755]
[1750706616302,0.82600888,103020.0,103010.0,0.00133755]
[1750706616516,0.98900888,103020.0,103010.0,0.00133755]
[1750706616948,0.82600888,103020.0,103010.0,0.00133755]
[1750706617381,1.25032276,103020.0,103010.0,0.00133755]
[1750706617752,1.28222276,103020.0,103010.0,0.00133755]
[1750706618173,1.25302776,103020.0,103010.0,0.00133755]
[1750706618608,1.44522176,103020.0,103010.0,0.00133755]
[1750706621069,3.1758,103020.0,103010.0,0.00133755]
[1750706621296,3.19886944,103020.0,103010.0,0.00133755]
[1750706622464,0.05426344,103020.0,103010.0,0.23710124]
[1750706622680,0.05426344,103020.0,103010.0,0.82353675]
[1750706622681,0.002,103020.0,103010.0,0.82353675]
[1750706623119,0.029285,103060.0,103040.0,0.25609577]
[1750706623120,0.0001,103060.0,103040.0,0.25609577]
[1750706623334,0.34,103050.0,103040.0,0.3563974]
[1750706624222,0.42441388,103060.0,103040.0,0.16229939]
[1750706624444,0.3401,103060.0,103040.0,0.16229939]
[1750706624874,0.3401,103060.0,103040.0,0.35639796]
[1750706625101,0.3401,103060.0,103040.0,0.16129939]
[1750706625525,0.3411,103060.0,103040.0,0.16129939]
[1750706626411,0.3411,103060.0,103040.0,0.35539832]
[1750706627075,0.3411,103060.0,103040.0,0.16129939]
[1750706627292,0.3411,103060.0,103040.0,0.30410237]
[1750706627511,0.3411,103060.0,103040.0,0.34600696]
[1750706627746,0.3411,103060.0,103050.0,0.0329]
[1750706628183,0.3411,103060.0,103050.0,0.0632]
[1750706628844,0.3401,103060.0,103050.0,0.0303]
[1750706629271,0.3411,103060.0,103050.0,0.0303]
[1750706629489,0.0011,103060.0,103050.0,0.0634]
[1750706629712,0.3411,103060.0,103050.0,0.0634]
[1750706630614,0.0011,103060.0,103050.0,0.36748386]
[1750706630826,0.0011,103060.0,103050.0,0.16369939]
[1750706631526,0.0011,103060.0,103050.0,0.35777993]
[1750706631748,0.0011,103060.0,103050.0,0.36748395]
[1750706631953,0.0011,103060.0,103050.0,0.35777993]
[1750706632166,0.0011,103060.0,103050.0,0.16369939]
[1750706632383,0.0001,103060.0,103050.0,0.16369939]
[1750706632599,0.3401,103060.0,103050.0,0.16369939]
[1750706632814,0.3401,103060.0,103050.0,0.16669939]
[1750706633247,0.3401,103060.0,103050.0,1.08312132]
[1750706633248,0.0001,103060.0,103050.0,1.08312132]
[1750706633466,0.0001,103060.0,103050.0,0.55281087]
[1750706635046,0.0001,103060.0,103050.0,0.54981087]
[1750706635266,0.0001,103060.0,103050.0,0.59341087]
[1750706635483,0.0011,103060.0,103050.0,0.59841087]
[1750706636642,0.0011,103060.0,103050.0,0.37248386]
[1750706636865,0.87141045,103060.0,103050.0,0.005]
[1750706637075,0.93780555,103060.0,103050.0,0.005]
[1750706637296,0.90201045,103060.0,103050.0,0.005]
[1750706637513,0.3717,103060.0,103050.0,0.005]
[1750706637783,0.87141045,103060.0,103050.0,0.005]
[1750706638009,0.3411,103060.0,103050.0,0.005]
[1750706638670,0.87141045,103060.0,103050.0,0.005]
[1750706639166,0.0011,103060.0,103050.0,0.005]
[1750706639393,0.0011,103060.0,103050.0,0.55737087]
[1750706639613,0.0011,103060.0,103050.0,1.08768132]
[1750706640502,0.0011,103060.0,103050.0,0.55737087]
[1750706641869,0.0011,103060.0,103050.0,0.39449087]
[1750706642091,0.0011,103060.0,103050.0,0.60097087]
[1750706644094,0.0011,103060.0,103050.0,0.60097097]
[1750706644309,0.0011,103060.0,103050.0,0.61067433]
[1750706645129,0.0011,103060.0,103050.0,0.40419433]
[1750706645343,0.0011,103060.0,103050.0,0.56707433]
[1750706645814,0.0011,103060.0,103050.0,0.86327433]
[1750706650238,0.56181045,103080.0,103060.0,0.19406171]
[1750706650441,0.56194441,103080.0,103060.0,0.2943611]
[1750706650672,0.10909081,103070.0,103050.0,0.52807821]
[1750706650897,0.63940126,103070.0,103050.0,0.75841918]
[1750706651065,0.63940126,103070.0,103050.0,0.7631232]
[1750706651286,0.56181045,103070.0,103050.0,0.7631232]
[1750706651497,0.03383396,103080.0,103050.0,0.85593424]
[1750706651701,0.02520765,103080.0,103060.0,0.37746646]
[1750706651908,0.02520765,103080.0,103060.0,0.38716916]
[1750706652119,0.02520765,103080.0,103070.0,0.16284]
[1750706652323,0.02520765,103080.0,103070.0,0.45904]
[1750706652528,0.36520765,103080.0,103070.0,0.45904]
[1750706652942,0.9272181,103080.0,103070.0,0.45904]
[1750706653149,0.9272181,103080.0,103070.0,0.2962]
[1750706653361,0.39690765,103080.0,103070.0,0.2962]
[1750706653571,0.41296555,103080.0,103070.0,0.2962]
[1750706653974,0.39590765,103080.0,103070.0,0.2962]
[1750706654184,0.41296641,103080.0,103070.0,0.2962]
[1750706654403,0.41396641,103080.0,103070.0,0.2962]
[1750706655433,0.97637686,103080.0,103070.0,0.2962]
[1750706655877,0.98540857,103080.0,103070.0,0.2962]
[1750706656092,0.97638192,103080.0,103070.0,0.2962]
[1750706656310,0.98541369,103080.0,103070.0,0.2962]
[1750706656524,0.98541385,103080.0,103070.0,0.2962]
[1750706657696,0.0333,103070.0,103060.0,0.45904]
[1750706657908,0.94474796,103070.0,103060.0,0.45904]
[1750706658586,0.94474796,103070.0,103060.0,0.2962]
[1750706658803,0.97764796,103070.0,103060.0,0.2962]
[1750706659017,0.97765585,103070.0,103060.0,0.2962]
[1750706660146,0.47605839,103070.0,103060.0,0.2972]
[1750706660358,1.00636884,103070.0,103060.0,0.2972]
[1750706663006,1.00636884,103070.0,103060.0,0.46004]
[1750706663219,1.00636884,103070.0,103060.0,0.2972]
[1750706663635,1.00636884,103070.0,103060.0,0.001]
[1750706664658,1.00637759,103070.0,103060.0,0.001]
[1750706664875,1.0063775,103070.0,103060.0,0.001]
[1750706666873,1.04488178,103070.0,103060.0,0.001]
[1750706667105,1.04488157,103070.0,103060.0,0.001]
[1750706667999,1.05392741,103070.0,103060.0,0.001]
[1750706668216,2.80579506,103070.0,103060.0,0.001]
[1750706668453,2.81089078,103070.0,103060.0,0.001]
[1750706670033,2.80410395,103070.0,103060.0,0.001]
[1750706670268,0.0312,103050.0,103030.0,0.24665172]
[1750706670498,0.57145784,103050.0,103030.0,0.85667953]
[1750706670713,0.5714577,103050.0,103030.0,0.84697391]
[1750706670949,0.58458414,103050.0,103030.0,0.62373939]
[1750706671382,0.58458414,103050.0,103030.0,0.6334453]
[1750706671595,0.58458414,103050.0,103030.0,0.62373939]
[1750706672023,0.36307369,103050.0,103030.0,0.82756303]
[1750706672498,0.36307369,103050.0,103030.0,0.67442875]
[1750706672713,0.36307369,103050.0,103030.0,0.83726875]
[1750706672929,0.36407369,103050.0,103030.0,0.86167914]
[1750706673155,0.36407369,103050.0,103040.0,0.3771084]
[1750706673373,0.341,103050.0,103040.0,0.5399484]
[1750706673608,0.001,103050.0,103040.0,0.5593571]
[1750706674007,0.001,103050.0,103040.0,1.38586755]
[1750706674250,0.009,103060.0,103050.0,0.2134883]
[1750706674464,0.009,103060.0,103050.0,0.38389133]
[1750706674680,0.009,103060.0,103050.0,0.40229815]
[1750706675319,0.009,103060.0,103050.0,0.37318778]
[1750706676193,0.009,103060.0,103050.0,0.16069939]
[1750706676417,0.009,103060.0,103050.0,0.13049939]
[1750706676638,0.53931045,103060.0,103050.0,0.26613939]
[1750706676855,0.90961045,103060.0,103050.0,0.003]
[1750706677067,0.94001045,103060.0,103050.0,0.003]
[1750706677746,0.96314327,103060.0,103050.0,0.003]
[1750706678234,1.06344266,103060.0,103050.0,0.003]
[1750706678442,1.08151523,103060.0,103050.0,0.003]
[1750706678657,2.69725323,103060.0,103050.0,0.003]
[1750706679314,0.0626,103050.0,103030.0,0.2962]
[1750706679537,0.87031045,103040.0,103030.0,0.2962]
[1750706680629,0.87031045,103040.0,103030.0,0.2982]
[1750706680839,0.8703997,103040.0,103030.0,0.2982]
[1750706681064,0.9014997,103040.0,103030.0,0.2982]
[1750706684670,0.37118925,103040.0,103030.0,0.2982]
[1750706684920,0.9014997,103040.0,103030.0,0.2982]
[1750706685628,0.9315997,103040.0,103030.0,0.2982]
[1750706686338,0.9014997,103040.0,103030.0,0.2982]
[1750706686978,0.8703997,103040.0,103030.0,0.2982]
[1750706687190,0.34008925,103040.0,103030.0,0.2982]
[1750706690300,0.34008925,103040.0,103030.0,0.6564176]
[1750706690518,0.34008925,103040.0,103030.0,0.66612341]
[1750706690740,0.34008925,103040.0,103030.0,0.67582913]
[1750706691205,0.34008925,103040.0,103030.0,0.69524009]
[1750706691436,0.34008925,103040.0,103030.0,0.69524018]
[1750706691659,0.34008925,103040.0,103030.0,0.69524028]
[1750706691877,0.34008925,103040.0,103030.0,0.70494571]
[1750706692086,0.34008925,103040.0,103030.0,0.6952399]
[1750706692317,0.34008925,103040.0,103030.0,0.68553447]
[1750706692536,0.34008925,103040.0,103030.0,0.67582894]
[1750706692748,8.925e-05,103040.0,103030.0,0.69523972]
[1750706695061,8.925e-05,103040.0,103030.0,0.73679972]
[1750706695145,8.925e-05,103040.0,103030.0,0.73979972]
[1750706695640,8.925e-05,103040.0,103030.0,1.27011017]
[1750706696087,8.925e-05,103040.0,103030.0,1.33465102]
[1750706696975,0.009,103060.0,103050.0,0.22319148]
[1750706697194,0.009,103060.0,103050.0,0.59279087]
[1750706697195,0.0090893,103060.0,103050.0,0.59279087]
[1750706698269,0.0090893,103060.0,103050.0,0.59379087]
[1750706699139,0.0090893,103060.0,103050.0,0.59279087]
[1750706699565,0.0090893,103060.0,103050.0,0.61581969]
[1750706699767,0.0090893,103060.0,103050.0,0.61981969]
[1750706700452,0.0090893,103060.0,103050.0,0.59679087]
[1750706700897,0.0090893,103060.0,103050.0,0.37098386]
[1750706701111,0.0090893,103060.0,103050.0,0.29837993]
[1750706701360,0.0090893,103060.0,103050.0,0.48058741]
[1750706701578,0.0090893,103060.0,103050.0,0.49029096]
[1750706701802,0.0090893,103060.0,103050.0,0.51118741]
[1750706702026,0.0090893,103060.0,103050.0,0.82270517]
[1750706702238,0.0090893,103060.0,103050.0,0.83340853]
[1750706702447,0.0090893,103060.0,103050.0,0.81400171]
[1750706702745,0.0090893,103060.0,103050.0,0.78489068]
[1750706702970,0.0392893,103060.0,103050.0,0.56021014]
[1750706704059,0.0392893,103060.0,103050.0,0.39741014]
[1750706704299,0.60269975,103060.0,103050.0,0.45991075]
[1750706704958,0.94269975,103060.0,103050.0,0.1638]
[1750706705203,0.3792893,103060.0,103050.0,0.1628]
[1750706705394,0.3802893,103060.0,103040.0,0.1628]
[1750706705614,0.3802893,103060.0,103040.0,0.26309939]
[1750706705835,0.3802893,103060.0,103040.0,0.27280435]
[1750706706263,0.3802893,103060.0,103040.0,0.26309939]
[1750706706493,0.3802893,103060.0,103040.0,0.27280435]
[1750706706935,0.3802893,103060.0,103040.0,0.26309939]
[1750706707149,0.3792893,103060.0,103040.0,0.26309939]
[1750706707364,0.3802893,103060.0,103040.0,0.26309939]
[1750706707575,0.3802893,103060.0,103040.0,0.45719841]
[1750706707806,0.3802893,103060.0,103040.0,0.27280435]
[1750706708017,0.3802893,103060.0,103040.0,0.11000435]
[1750706708245,0.3802893,103060.0,103040.0,0.47660651]
[1750706708463,0.3802893,103060.0,103040.0,0.26309939]
[1750706709021,0.3802893,103060.0,103040.0,0.48631328]
[1750706709233,0.3802893,103060.0,103040.0,0.48631318]
[1750706709446,0.3802893,103060.0,103040.0,0.49601758]
[1750706709668,0.3500893,103060.0,103040.0,0.53782104]
[1750706709890,0.0100893,103060.0,103050.0,0.29437993]
[1750706710105,0.0100893,103060.0,103050.0,0.30408386]
[1750706710291,0.0100893,103060.0,103050.0,0.3137876]
[1750706710547,0.0100893,103060.0,103050.0,0.31378769]
[1750706710767,0.0100893,103060.0,103050.0,0.32349143]
[1750706710993,0.0100893,103060.0,103050.0,0.60989844]
[1750706711316,0.0090893,103060.0,103050.0,0.60989844]
[1750706711534,0.0100893,103060.0,103050.0,0.60019461]
[1750706711751,0.0100893,103060.0,103050.0,0.6001947]
[1750706712106,0.0100893,103060.0,103050.0,0.60989863]
[1750706712330,0.0100893,103060.0,103050.0,0.39641014]
[1750706714132,0.0100893,103060.0,103050.0,0.55917014]
[1750706714357,0.57079975,103060.0,103050.0,0.45887075]
[1750706714578,0.60329975,103060.0,103050.0,0.29611075]
[1750706714799,0.0729893,103060.0,103050.0,0.29611075]
[1750706717442,0.0729893,103060.0,103050.0,0.45887075]
[1750706719664,0.0404893,103060.0,103050.0,0.45887075]
[1750706723322,0.0712893,103060.0,103050.0,0.45887075]
[1750706723808,0.94159975,103060.0,103050.0,0.45883075]
[1750706724275,0.94159975,103060.0,103050.0,0.29611075]
[1750706724505,0.83561396,103060.0,103050.0,0.29611075]
[1750706724732,0.85883578,103060.0,103050.0,0.29611075]
[1750706725855,0.83561396,103060.0,103050.0,0.29611075]
[1750706726298,0.94163174,103060.0,103050.0,0.29611075]
[1750706727301,0.93263174,103060.0,103050.0,0.28711075]
[1750706728531,0.93263174,103060.0,103040.0,0.16272]
[1750706728746,0.93263174,103060.0,103040.0,0.26301939]
[1750706729157,0.95587717,103060.0,103040.0,0.26301939]
[1750706729586,0.95487717,103060.0,103040.0,0.26301939]
[1750706730010,0.92547717,103060.0,103040.0,0.26301939]
[1750706730220,0.031,103050.0,103040.0,0.26301939]
[1750706730857,0.53034244,103060.0,103040.0,0.60301939]
[1750706731308,0.53034244,103060.0,103040.0,0.26301939]
[1750706731525,0.53034244,103060.0,103040.0,0.26401939]
[1750706732201,0.53034244,103060.0,103040.0,0.001]
[1750706732650,0.69302244,103060.0,103040.0,0.001]
[1750706733402,0.71626407,103060.0,103030.0,0.43150287]
[1750706733615,0.71626407,103060.0,103030.0,0.53180226]
[1750706733850,0.77986407,103060.0,103030.0,0.54150807]
[1750706734076,0.24952163,103060.0,103030.0,0.5512136]
[1750706734291,0.77986407,103060.0,103030.0,0.54150807]
[1750706734514,0.61718407,103060.0,103030.0,0.62417939]
[1750706734733,0.61718407,103060.0,103030.0,0.83770889]
[1750706734978,0.61718407,103060.0,103030.0,0.83770898]
[1750706735202,0.64636407,103060.0,103030.0,0.83770898]
[1750706735422,0.64636407,103060.0,103030.0,0.8474147]
[1750706736299,0.62312244,103060.0,103030.0,0.8474147]
[1750706737614,0.033,103050.0,103030.0,0.62417939]
[1750706737837,0.033,103050.0,103030.0,0.6338853]
[1750706738714,0.033,103050.0,103030.0,0.64359111]
[1750706738942,0.033,103050.0,103030.0,0.82800348]
[1750706739171,0.56334244,103050.0,103030.0,0.59097939]
[1750706739411,0.75797675,103060.0,103030.0,0.62237939]
[1750706739880,0.75797675,103060.0,103030.0,0.82620289]
[1750706740103,0.75797675,103060.0,103040.0,0.0332]
[1750706740768,0.34,103060.0,103040.0,0.0332]
[1750706740978,0.36323889,103060.0,103040.0,0.0332]
[1750706741436,0.36323889,103060.0,103030.0,0.45859939]
[1750706741905,0.34,103050.0,103030.0,0.0307]
[1750706742132,0.34,103050.0,103020.0,0.0613]
[1750706742382,0.0646,103040.0,103020.0,0.0002]
[1750706742613,0.3705,103030.0,103020.0,0.0002]
[1750706743069,0.39333914,103030.0,103020.0,0.0002]
[1750706743511,0.36283914,103030.0,103020.0,0.0002]
[1750706744672,0.36283914,103030.0,103020.0,0.0062]
[1750706747129,0.02283914,103030.0,103020.0,0.0062]
[1750706747354,0.36283914,103030.0,103020.0,0.0675]
[1750706747606,0.34,103030.0,103020.0,0.0675]
[1750706748241,0.34,103030.0,103020.0,0.0367]
[1750706749480,0.34,103030.0,103020.0,0.0696]
[1750706749888,0.072708,103050.0,103030.0,0.0641]
[1750706750101,0.57636,103060.0,103040.0,0.0641]
[1750706750310,0.05235507,103060.0,103040.0,0.258199]
[1750706750529,0.14039081,103070.0,103050.0,0.0312]
[1750706750724,0.05235348,103070.0,103050.0,0.0641893]
[1750706751354,0.04348663,103070.0,103050.0,0.0641893]
[1750706751790,0.38348663,103070.0,103050.0,0.0641893]
[1750706751991,0.04348663,103070.0,103050.0,0.0641893]
[1750706752463,0.38348663,103070.0,103050.0,0.0641893]
[1750706753080,0.38648663,103070.0,103050.0,0.0641893]
[1750706756051,0.36331215,103070.0,103050.0,0.0641893]
[1750706757030,0.36331215,103070.0,103060.0,0.0633]
[1750706757256,0.02331215,103070.0,103060.0,0.0633]
[1750706760470,0.02031215,103070.0,103060.0,0.0633]
[1750706762672,0.417619,103080.0,103060.0,0.0633]
[1750706763315,0.417619,103080.0,103060.0,0.0323]
[1750706763316,0.449319,103080.0,103060.0,0.0323]
[1750706763544,0.449319,103080.0,103050.0,0.10038869]
[1750706763545,0.34,103060.0,103050.0,8.93e-05]
[1750706763812,0.0317,103060.0,103050.0,8.93e-05]
[1750706764463,0.39158792,103070.0,103050.0,8.93e-05]
[1750706764677,0.44729835,103070.0,103050.0,8.93e-05]
[1750706764892,0.44729756,103070.0,103050.0,8.93e-05]
[1750706765373,0.41549756,103070.0,103050.0,0.0627893]
[1750706765592,0.41849756,103070.0,103050.0,0.0627893]
[1750706766027,0.41849756,103070.0,103050.0,0.0314893]
[1750706766524,0.39538792,103070.0,103050.0,0.0244893]
[1750706766752,0.42578792,103070.0,103050.0,0.0244893]
[1750706767905,0.36278792,103070.0,103050.0,0.15548869]
[1750706768353,0.36378792,103070.0,103050.0,0.15548869]
[1750706768797,0.36378792,103070.0,103060.0,0.0327]
[1750706769461,0.36378792,103070.0,103060.0,0.0651]
[1750706769686,0.36278792,103070.0,103060.0,0.0651]
[1750706769896,0.02278792,103070.0,103060.0,0.0651]
[1750706770117,0.02378792,103070.0,103060.0,0.0651]
[1750706770388,0.02078792,103070.0,103060.0,0.0651]
[1750706770856,0.02378792,103070.0,103060.0,0.0651]
[1750706771289,0.02378792,103070.0,103060.0,0.38856921]
[1750706771510,0.004,103070.0,103060.0,0.38856921]
[1750706771706,0.004,103070.0,103060.0,0.37886679]
[1750706772399,0.004,103070.0,103060.0,0.3885694]
[1750706772612,0.004,103070.0,103060.0,0.39827192]
[1750706772831,0.004,103070.0,103060.0,0.5510894]
[1750706773302,0.003,103070.0,103060.0,0.5510894]
[1750706773513,0.38364,103090.0,103070.0,0.0655]
[1750706774388,0.38364,103090.0,103070.0,0.27894617]
[1750706774606,0.40402407,103090.0,103070.0,0.0655]
[1750706774832,0.40402407,103090.0,103080.0,0.03]
[1750706775044,0.02058407,103090.0,103080.0,0.0621]
[1750706775260,0.02258407,103090.0,103080.0,0.0621]
[1750706775491,0.02758407,103090.0,103080.0,0.0621]
[1750706775717,0.02558407,103090.0,103080.0,0.0621]
[1750706775938,0.05768407,103090.0,103070.0,0.32697939]
[1750706776141,0.02758407,103090.0,103070.0,0.32697939]
[1750706776556,0.02258407,103090.0,103070.0,0.32697939]
[1750706777042,0.05468407,103090.0,103070.0,0.0642]
[1750706777268,0.0321,103080.0,103060.0,0.3286]
[1750706777487,0.0321,103080.0,103060.0,0.13269939]
[1750706778388,0.531652,103100.0,103060.0,0.16309939]
[1750706778598,0.68219325,103100.0,103060.0,0.16309939]
[1750706778814,0.34,103090.0,103060.0,0.16309939]
[1750706779023,0.001,103080.0,103060.0,0.16309939]
[1750706780070,0.001,103080.0,103060.0,0.16159939]
[1750706781355,0.001,103080.0,103060.0,0.0613]
[1750706781559,0.002,103080.0,103060.0,0.0613]
[1750706782241,0.002,103080.0,103070.0,0.0645]
[1750706783608,0.001,103080.0,103070.0,0.0331]
[1750706783832,0.002,103080.0,103070.0,0.0331]
[1750706784051,0.001,103080.0,103070.0,0.0331]
[1750706784503,0.002,103080.0,103070.0,0.0331]
[1750706786000,0.002,103080.0,103070.0,0.0647]
[1750706788130,0.002,103080.0,103060.0,0.13159939]
[1750706788359,0.002,103080.0,103060.0,0.32583939]
[1750706789008,0.001,103080.0,103060.0,0.32583939]
[1750706789465,0.389098,103090.0,103060.0,0.32583939]
[1750706789692,0.47530135,103090.0,103060.0,0.32583939]
[1750706789908,0.001,103080.0,103060.0,0.32583939]
[1750706790345,0.002,103080.0,103060.0,0.32583939]
[1750706790573,0.001,103080.0,103060.0,0.32583939]
[1750706790837,0.001,103080.0,103070.0,0.0322]
[1750706791479,0.002,103080.0,103070.0,0.0322]
[1750706792153,0.001,103080.0,103070.0,0.0322]
[1750706792564,0.418698,103090.0,103070.0,0.0647]
[1750706792810,0.001,103080.0,103070.0,0.0647]
[1750706793507,0.002,103080.0,103070.0,0.0647]
[1750706793724,0.001,103080.0,103070.0,0.0647]
[1750706794386,0.46445627,103080.0,103060.0,0.0613]
[1750706794614,0.46445627,103080.0,103020.0,0.27357823]
[1750706794615,0.48529939,103070.0,103040.0,0.2237]
[1750706794796,0.48529939,103070.0,103040.0,0.0613]
[1750706794797,0.34,103050.0,103040.0,0.0613]
[1750706795685,0.3696,103060.0,103040.0,0.0613]
[1750706795893,0.49304856,103060.0,103040.0,0.0613]
[1750706796756,0.49304856,103060.0,103040.0,0.0673]
[1750706797249,0.46344856,103060.0,103040.0,0.0613]
[1750706797465,0.4815518,103060.0,103040.0,0.0663]
[1750706797675,0.49304856,103060.0,103040.0,0.0663]
[1750706798104,0.49304856,103060.0,103040.0,0.0355]
[1750706798325,0.54304349,103060.0,103040.0,0.005]
[1750706798777,0.56113759,103060.0,103040.0,0.005]
[1750706799632,0.54304349,103060.0,103040.0,0.005]
[1750706800079,0.50844856,103060.0,103040.0,0.005]
[1750706801834,0.50844856,103060.0,103040.0,0.0689]
[1750706802487,0.50844856,103060.0,103040.0,0.0377]
[1750706805295,0.50844856,103060.0,103040.0,0.0705]
[1750706805497,0.50844856,103060.0,103040.0,0.0377]
[1750706805675,0.34,103050.0,103040.0,0.005]
[1750706806584,0.34,103050.0,103040.0,0.003]
[1750706806738,0.34,103050.0,103040.0,0.0308]
[1750706806949,0.34,103050.0,103040.0,0.0408]
[1750706807149,0.46989939,103050.0,103040.0,0.01]
[1750706807365,1.985338,103040.0,103020.0,0.031]
[1750706807578,0.34,103030.0,103020.0,0.0002]
[1750706807791,2.08563739,103030.0,103020.0,0.0002]
[1750706808360,2.10017824,103030.0,103020.0,0.0002]
[1750706808585,2.13866116,103030.0,103020.0,0.00028925]
[1750706809018,2.12426116,103030.0,103020.0,0.00028925]
[1750706809505,2.10117824,103030.0,103020.0,0.00028925]
[1750706810139,2.10317824,103030.0,103020.0,0.00028925]
[1750706812063,2.18627165,103030.0,103020.0,0.00028925]
[1750706812497,2.14163626,103030.0,103020.0,0.00028925]
[1750706812712,2.09663626,103030.0,103020.0,0.00028925]
[1750706816875,2.12583026,103030.0,103020.0,0.00028925]
[1750706819126,0.36605802,103030.0,103020.0,0.06548925]
[1750706819354,0.003,103030.0,103020.0,0.06548925]
[1750706819604,0.003,103030.0,103020.0,0.26933297]
[1750706819854,0.003,103030.0,103020.0,0.06548925]
[1750706821222,0.002,103030.0,103020.0,0.06548925]
[1750706821442,2.457738,103030.0,103020.0,0.06548925]
[1750706821654,0.342,103030.0,103020.0,0.06548925]
[1750706821869,0.343,103030.0,103020.0,0.06548925]
[1750706822305,0.342,103030.0,103020.0,0.06648925]
[1750706822511,0.348,103030.0,103020.0,0.06648925]
[1750706823018,0.48455347,103030.0,103020.0,0.06648925]
[1750706823235,0.48455347,103030.0,103020.0,0.00128925]
[1750706823236,2.10167187,103030.0,103020.0,0.00128925]
[1750706823452,2.13055892,103030.0,103020.0,0.00128925]
[1750706824552,2.148619,103030.0,103020.0,0.00128925]
[1750706824971,2.18718656,103030.0,103020.0,0.00128925]
[1750706825830,2.15829951,103030.0,103020.0,0.00128925]
[1750706826260,2.15830092,103030.0,103020.0,0.00128925]
[1750706827556,2.16507618,103030.0,103020.0,0.00128925]
[1750706828897,2.15830092,103030.0,103020.0,0.00128925]
[1750706829147,2.16507615,103030.0,103020.0,0.00128925]
[1750706829366,2.25202757,103030.0,103020.0,0.00128925]
[1750706830484,2.27665843,103030.0,103020.0,0.00128925]
[1750706830691,2.25202757,103030.0,103020.0,0.00128925]
[1750706831134,2.1797303,103030.0,103020.0,0.06538925]
[1750706831355,0.55721707,103030.0,103020.0,0.06538925]
[1750706831568,2.17621635,103030.0,103020.0,0.00128925]
[1750706831787,2.23397277,103030.0,103020.0,0.00128925]
[1750706832001,2.19540521,103030.0,103020.0,0.00128925]
[1750706832882,4.18862329,103030.0,103020.0,0.00128925]
[1750706836274,0.34,103020.0,103010.0,0.0331]
[1750706836494,2.13710575,103020.0,103010.0,0.00033755]
[1750706836722,2.07913102,103020.0,103010.0,0.00033755]
[1750706837715,2.08013102,103020.0,103010.0,0.03353755]
[1750706838469,2.11406434,103020.0,103010.0,0.03353755]
[1750706838913,2.27638434,103020.0,103010.0,0.00033755]
[1750706839118,2.27638322,103020.0,103010.0,0.00033755]
[1750706840002,2.37669044,103020.0,103010.0,0.00033755]
[1750706840217,2.27639105,103020.0,103010.0,0.00033755]
[1750706840351,2.27642394,103020.0,103010.0,0.06413755]
[1750706840565,2.2673645,103020.0,103010.0,0.06413755]
[1750706841168,2.2965595,103020.0,103010.0,0.06413755]
[1750706841575,2.27346587,103020.0,103010.0,0.06413755]
[1750706841780,2.29665642,103020.0,103010.0,0.06413755]
[1750706842441,2.40189648,103020.0,103010.0,0.06413755]
[1750706843108,2.36916985,103020.0,103010.0,0.06413755]
[1750706843462,2.36916911,103020.0,103010.0,0.06413755]
[1750706843678,2.36237289,103020.0,103010.0,0.06413755]
[1750706843896,2.36916658,103020.0,103010.0,0.03353755]
[1750706844107,1.615738,103010.0,103000.0,0.01943643]
[1750706844323,0.0908138,103010.0,103000.0,0.01943643]
[1750706845390,0.0908138,103010.0,103000.0,0.02043643]
[1750706845849,0.12644499,103010.0,103000.0,0.02043643]
[1750706846402,0.08780313,103010.0,103000.0,0.02043643]
[1750706846820,0.08780313,103010.0,103000.0,0.02143643]
[1750706847315,0.08780313,103010.0,103000.0,0.05423643]
[1750706849447,0.05882174,103010.0,103000.0,0.05423643]
[1750706849692,0.08780313,103010.0,103000.0,0.05423643]
[1750706850327,0.05882174,103010.0,103000.0,0.05423643]
[1750706850547,0.05882174,103010.0,103000.0,0.15453582]
[1750706852486,0.03563119,103010.0,103000.0,0.15453582]
[1750706852919,0.34013392,103020.0,103010.0,0.0659]
[1750706853134,0.36332599,103020.0,103010.0,0.0659]
[1750706854292,0.36532599,103020.0,103010.0,0.0659]
[1750706855382,0.34213392,103020.0,103010.0,0.16619939]
[1750706856495,0.37780546,103020.0,103010.0,0.16619939]
[1750706859185,0.37780546,103020.0,103010.0,0.66626299]
[1750706859418,0.37780546,103020.0,103010.0,0.65655529]
[1750706859659,0.37780546,103020.0,103010.0,0.6759704]
[1750706859901,0.00213392,103020.0,103010.0,0.68567772]
[1750706860132,0.00213392,103020.0,103010.0,1.1198332]
[1750706860824,2.0,103030.0,103020.0,0.28525647]
[1750706861105,2.0,103030.0,103020.0,0.97216421]
[1750706861596,1.9667,103030.0,103020.0,1.08090506]
[1750706861799,1.871,103030.0,103020.0,1.85155341]
[1750706862238,1.8398,103030.0,103020.0,1.85155341]
[1750706862461,1.8398,103030.0,103020.0,1.88823073]
[1750706862677,1.8398,103030.0,103020.0,1.85155341]
[1750706862891,1.8398,103030.0,103020.0,1.85355341]
[1750706863112,1.8398,103030.0,103020.0,1.85255341]
[1750706863761,1.8398,103030.0,103020.0,1.85155341]
[1750706863983,1.8408,103030.0,103020.0,1.86355341]